bitfinex/quotes_SOLUSD_20250126
["timestamp","ask_amount","ask_price","bid_price","bid_amount"]
[1737924595636,33.12815252,254.29,254.28,0.063]
[1737924596438,8.96146843,254.29,254.28,0.063]
[1737924596639,3.9625,254.29,254.28,0.063]
[1737924600940,27.739384,254.29,254.28,0.063]
[1737924601243,28.12918409,254.29,254.28,0.063]
[1737924603446,23.776884,254.28,254.24,0.063]
[1737924603616,29.13585243,254.25,254.24,0.063]
[1737924604620,23.776884,254.24,254.1,1.6108]
[1737924604824,5.35896843,254.18,254.1,1.6108]
[1737924606227,33.07005243,254.18,254.1,1.6108]
[1737924606614,9.29316843,254.18,254.1,1.6108]
[1737924615132,9.29316843,254.18,254.06,0.063]
[1737924615344,9.68296852,254.18,254.06,0.063]
[1737924615521,9.29316843,254.18,254.07,3.9359]
[1737924616336,9.29316843,254.18,254.06,0.063]
[1737924616823,9.68296852,254.18,254.06,0.063]
[1737924617731,9.29316843,254.18,254.06,0.063]
[1737924619323,9.29316843,254.18,254.17,0.193]
[1737924627248,9.29316843,254.18,254.17,0.0001]
[1737924627249,54.50592615,254.18,254.17,0.0001]
[1737924627553,54.50592615,254.18,254.06,0.063]
[1737924627554,23.776884,254.17,254.06,0.063]
[1737924627732,5.35896843,254.08,254.06,0.063]
[1737924627926,5.35896843,254.1,254.06,0.063]
[1737924629730,3.9355,254.1,254.06,0.063]
[1737924631457,5.35896843,254.1,254.06,0.063]
[1737924633252,5.35896843,254.12,254.06,0.063]
[1737924633574,5.35896843,254.13,254.06,0.063]
[1737924633749,5.35896843,254.12,254.06,0.063]
[1737924633952,5.35896843,254.11,254.06,0.063]
[1737924635767,9.29426843,254.11,254.06,0.063]
[1737924636669,5.35896843,254.09,254.06,0.063]
[1737924637661,9.29456843,254.09,254.06,0.063]
[1737924638662,5.35896843,254.07,254.06,0.063]
[1737924639850,9.29486843,254.07,254.06,0.063]
[1737924664771,33.07175243,254.07,254.06,0.0001]
[1737924665079,23.776884,254.06,254.02,0.063]
[1737924665282,26.79484215,254.03,254.02,0.063]
[1737924665486,29.45484215,254.03,254.02,0.063]
[1737924665784,5.35896843,253.99,253.98,0.063]
[1737924666567,9.29606843,253.99,253.98,0.063]
[1737924666799,33.07295243,253.99,253.98,0.063]
[1737924668277,9.29606843,253.99,253.98,0.063]
[1737924668712,9.68586852,253.99,253.98,0.063]
[1737924669416,11.20666852,253.99,253.98,0.063]
[1737924670493,11.20666852,253.99,253.87,0.02]
[1737924670690,5.35896843,253.89,253.87,0.02]
[1737924671897,5.35896843,253.91,253.87,0.02]
[1737924673302,5.35896843,253.97,253.88,6.2414]
[1737924673495,5.35896843,254.01,253.88,6.2414]
[1737924673691,5.35896843,254.01,253.91,20.0]
[1737924674007,5.35896843,254.03,253.91,20.0]
[1737924674791,5.35896843,254.03,253.92,3.9382]
[1737924675682,5.35896843,254.03,253.88,6.2414]
[1737924675683,5.35896843,253.97,253.88,6.2414]
[1737924675999,5.35896843,253.97,253.88,10.1801]
[1737924676305,5.35896843,253.95,253.88,10.1801]
[1737924676508,5.35896843,253.95,253.88,6.2414]
[1737924678878,5.35896843,253.93,253.87,0.02]
[1737924679693,5.35896843,253.93,253.88,0.063]
[1737924680691,0.38980009,254.0,253.88,0.063]
[1737924680692,5.35896843,253.95,253.88,0.063]
[1737924681208,5.35896843,253.93,253.88,0.063]
[1737924681396,5.35896843,253.94,253.88,0.063]
[1737924683509,3.9378,253.95,253.88,0.063]
[1737924684807,5.35896843,253.94,253.88,0.063]
[1737924685808,5.35896843,253.92,253.88,0.063]
[1737924685988,5.35896843,253.9,253.88,0.063]
[1737924686410,5.35896843,253.92,253.88,0.063]
[1737924686708,9.29726843,253.92,253.88,0.063]
[1737924688100,3.9383,253.92,253.88,0.063]
[1737924689616,0.38980009,253.94,253.88,0.063]
[1737924689807,12.5628,254.0,253.88,0.063]
[1737924689808,6.6571,254.0,253.89,1.5611]
[1737924690192,3.9371,254.0,253.89,1.5611]
[1737924690814,3.9371,254.0,253.9,3.9385]
[1737924692817,5.35896843,254.01,253.9,3.9385]
[1737924693009,5.38896843,254.03,253.92,20.0]
[1737924694023,5.38896843,254.03,253.93,3.938]
[1737924694898,5.35896843,254.01,253.93,3.938]
[1737924697917,5.38896843,254.03,253.93,3.938]
[1737924698299,9.32546843,254.03,253.93,3.938]
[1737924700023,5.38896843,254.03,253.93,3.938]
[1737924700935,9.32546843,254.03,253.93,3.938]
[1737924706029,5.35896843,254.01,253.93,3.938]
[1737924706730,5.35896843,254.01,253.92,20.0]
[1737924707632,5.38896843,254.03,253.92,20.0]
[1737924710636,5.38896843,254.03,253.89,2.5611]
[1737924710828,9.32556843,254.03,253.91,20.0]
[1737924711138,5.35896843,254.01,253.9,3.9385]
[1737924711815,3.937,254.0,253.9,3.9385]
[1737924716741,3.937,254.0,253.9,4.0015]
[1737924718221,5.35896843,253.99,253.9,4.0015]
[1737924718744,3.937,254.0,253.9,4.0015]
[1737924718948,5.35896843,253.99,253.9,4.0015]
[1737924719140,5.35896843,253.97,253.9,0.063]
[1737924719918,5.35896843,253.95,253.9,0.063]
[1737924721030,5.35896843,253.97,253.9,0.063]
[1737924723019,5.35896843,253.97,253.9,4.0015]
[1737924723227,5.35896843,253.99,253.9,4.0015]
[1737924723927,5.35896843,254.01,253.9,4.0015]
[1737924724735,5.35896843,253.99,253.9,4.0015]
[1737924727144,9.29606843,253.99,253.9,4.0015]
[1737924727319,5.35896843,253.97,253.9,4.0015]
[1737924727524,5.35896843,253.97,253.9,0.063]
[1737924728030,5.35896843,253.97,253.9,4.0015]
[1737924729150,5.35896843,253.99,253.9,4.0015]
[1737924729828,0.03,253.98,253.9,4.0015]
[1737924732150,5.35896843,253.95,253.9,0.063]
[1737924732353,5.35896843,253.93,253.9,0.063]
[1737924734227,9.29706843,253.93,253.9,0.063]
[1737924735731,5.35896843,253.93,253.9,0.063]
[1737924738256,9.29706843,253.93,253.9,0.063]
[1737924738939,5.35896843,253.91,253.9,0.063]
[1737924740230,9.29736843,253.91,253.9,0.063]
[1737924740533,3.9384,253.91,253.9,0.063]
[1737924741954,3.9382,253.92,253.9,0.063]
[1737924745665,4.32800009,253.92,253.9,0.063]
[1737924746664,7.01266843,253.91,253.9,0.063]
[1737924751365,30.78955243,253.91,253.9,0.063]
[1737924754976,9.29736843,253.91,253.9,0.063]
[1737924755277,3.9384,253.91,253.9,0.063]
[1737924757880,5.35896843,253.95,253.9,0.063]
[1737924758079,5.35896843,253.97,253.9,4.0015]
[1737924758288,0.03,253.98,253.9,4.0015]
[1737924759256,5.35896843,253.97,253.9,0.063]
[1737924759756,5.35896843,253.95,253.9,0.063]
[1737924761277,5.35896843,253.97,253.9,0.063]
[1737924761463,5.35896843,253.97,253.9,4.0015]
[1737924763062,5.35896843,253.97,253.9,0.063]
[1737924764686,9.29636843,253.97,253.9,0.063]
[1737924770985,5.35896843,253.95,253.9,0.063]
[1737924771778,5.35896843,253.93,253.9,0.063]
[1737924775097,9.29716843,253.93,253.9,0.063]
[1737924775392,5.35896843,253.91,253.9,0.063]
[1737924778493,9.29736843,253.91,253.9,0.063]
[1737924790298,10.29736843,253.91,253.9,0.063]
[1737924791402,12.93736843,253.91,253.9,0.063]
[1737924800615,10.29736843,253.91,253.9,0.063]
[1737924802915,23.776884,253.9,253.88,0.063]
[1737924803118,29.13585243,253.88,253.87,0.02]
[1737924803314,5.35896843,253.88,253.87,0.02]
[1737924803800,29.13585243,253.88,253.87,0.02]
[1737924804004,33.07465243,253.88,253.87,0.02]
[1737924811826,42.92175243,253.88,253.73,1.5053]
[1737924812020,5.35896843,253.77,253.73,1.5053]
[1737924813315,5.35896843,253.75,253.73,1.5053]
[1737924813617,23.776884,253.85,253.72,0.063]
[1737924813618,5.74876852,253.74,253.72,0.063]
[1737924813928,5.35896843,253.73,253.72,0.063]
[1737924815231,9.30006843,253.73,253.72,0.063]
[1737924815426,9.68986852,253.73,253.72,0.063]
[1737924815917,33.46675252,253.73,253.72,0.063]
[1737924821332,9.68986852,253.73,253.72,0.063]
[1737924821523,5.35896843,253.73,253.72,0.063]
[1737924823322,5.74876852,253.73,253.72,0.063]
[1737924823935,29.52565252,253.73,253.72,0.063]
[1737924826142,29.52565252,253.73,253.64,0.063]
[1737924826143,5.35896843,253.66,253.64,0.063]
[1737924827351,3.9424,253.65,253.64,0.063]
[1737924828251,5.35896843,253.66,253.64,0.063]
[1737924828441,5.35896843,253.73,253.64,4.0055]
[1737924829135,5.35896843,253.75,253.65,1.5385]
[1737924829444,5.35896843,253.77,253.67,6.6097]
[1737924829754,9.29956843,253.77,253.67,6.6097]
[1737924832352,5.35896843,253.77,253.68,3.9419]
[1737924832532,5.35896843,253.85,253.71,21.5385]
[1737924832947,5.35896843,253.83,253.71,21.5385]
[1737924833143,5.35896843,253.81,253.71,21.5385]
[1737924833333,3.9401,253.8,253.71,1.5385]
[1737924833732,5.35896843,253.79,253.71,1.5385]
[1737924834547,3.9404,253.78,253.71,1.5385]
[1737924836657,3.9404,253.78,253.71,1.6015]
[1737924837434,5.35896843,253.77,253.71,1.6015]
[1737924838156,3.9407,253.76,253.71,1.6015]
[1737924841667,3.9404,253.78,253.71,1.6015]
[1737924845269,3.6804894,253.78,253.71,1.6015]
[1737924848943,5.74876852,253.77,253.71,1.6015]
[1737924849138,5.74876852,253.77,253.71,0.063]
[1737924849546,3.9407,253.76,253.71,0.063]
[1737924854775,0.03,253.78,253.71,0.063]
[1737924854955,0.03,253.78,253.71,4.0043]
[1737924855161,0.03,253.78,253.72,1.5827]
[1737924857080,0.03,253.78,253.72,5.524]
[1737924858793,0.03,253.78,253.76,6.6303]
[1737924860458,0.03,253.78,253.77,3.9405]
[1737924863594,0.03,253.78,253.76,6.6303]
[1737924864192,0.03,253.78,253.76,10.5709]
[1737924870599,0.03,253.78,253.76,3.9406]
[1737924870788,0.03,253.78,253.73,3.941]
[1737924871101,0.03,253.78,253.72,1.5827]
[1737924872473,5.35896843,253.77,253.71,0.063]
[1737924873498,9.29966843,253.77,253.71,0.063]
[1737924875293,5.35896843,253.75,253.71,0.063]
[1737924875486,9.29966843,253.77,253.71,0.063]
[1737924879503,0.38980009,253.76,253.71,0.063]
[1737924881805,3.9408,253.75,253.71,0.063]
[1737924882504,9.29976843,253.75,253.71,0.063]
[1737924887202,3.9406,253.77,253.71,0.063]
[1737924888679,9.29956843,253.77,253.71,0.063]
[1737924891184,0.03,253.78,253.71,0.063]
[1737924891510,0.03,253.78,253.71,4.0045]
[1737924893993,0.03,253.78,253.71,0.063]
[1737924894507,5.35896843,253.77,253.71,0.063]
[1737924895993,3.9407,253.76,253.71,0.063]
[1737924899811,5.74876852,253.77,253.71,0.063]
[1737924899998,3.9705,253.78,253.75,20.0]
[1737924899999,0.03,253.78,253.75,20.0]
[1737924900399,0.03,253.78,253.77,1.0]
[1737924900905,0.03,253.78,253.75,20.0]
[1737924901312,0.03,253.78,253.72,5.5382]
[1737924903836,0.03,253.78,253.72,1.5969]
[1737924904015,0.03,253.78,253.71,0.063]
[1737924904214,5.35896843,253.77,253.71,0.063]
[1737924904595,9.29956843,253.77,253.71,0.063]
[1737924906120,5.35896843,253.75,253.71,0.063]
[1737924906336,5.35896843,253.73,253.71,0.063]
[1737924908423,3.9413,253.72,253.71,0.063]
[1737924909619,33.07715243,253.72,253.71,0.063]
[1737924909826,33.07715243,253.72,253.71,0.0001]
[1737924910219,9.30026843,253.72,253.71,0.0001]
[1737924919938,33.07715243,253.72,253.71,0.0001]
[1737924920450,35.79715243,253.72,253.71,0.0001]
[1737924924653,33.07715243,253.72,253.71,0.0001]
[1737924925043,9.30026843,253.72,253.71,0.0001]
[1737924928149,5.74876852,253.76,253.71,0.0001]
[1737924928320,9.68956852,253.76,253.71,0.0001]
[1737924931453,9.71956852,253.76,253.71,0.0001]
[1737924931642,29.13585243,253.72,253.71,0.0001]
[1737924931833,29.52565252,253.72,253.71,0.0001]
[1737924933726,33.46695252,253.72,253.71,0.0001]
[1737924940764,33.46695252,253.72,253.49,1.6618]
[1737924940765,1.0,253.63,253.49,1.6618]
[1737924940939,5.35896843,253.57,253.49,1.6618]
[1737924941133,0.38980009,253.56,253.46,0.063]
[1737924941380,5.35896843,253.55,253.46,0.063]
[1737924942052,0.38980009,253.54,253.46,0.063]
[1737924942255,5.35896843,253.53,253.46,0.063]
[1737924942446,0.38980009,253.52,253.46,0.063]
[1737924943467,5.35896843,253.51,253.46,0.063]
[1737924943636,0.38980009,253.5,253.46,0.063]
[1737924946353,5.35896843,253.49,253.46,0.063]
[1737924947959,5.35896843,253.47,253.46,0.063]
[1737924948660,29.13585243,253.47,253.46,0.063]
[1737924948888,5.35896843,253.47,253.46,0.063]
[1737924949071,5.74876852,253.47,253.46,0.063]
[1737924949247,8.46876852,253.47,253.46,0.063]
[1737924949850,12.41396852,253.47,253.46,0.063]
[1737924951367,8.46876852,253.47,253.46,0.063]
[1737924951669,8.07896843,253.47,253.46,0.063]
[1737924951844,32.24565252,253.47,253.46,0.063]
[1737924953571,8.46876852,253.47,253.46,0.063]
[1737924956178,5.74876852,253.47,253.46,0.063]
[1737924956475,5.35896843,253.47,253.46,0.063]
[1737924960045,5.74876852,253.47,253.46,0.063]
[1737924962477,5.35896843,253.47,253.46,0.063]
[1737924963759,5.74876852,253.47,253.46,0.063]
[1737924965086,5.35896843,253.47,253.46,0.063]
[1737924967059,9.30416843,253.47,253.46,0.063]
[1737924968284,9.30416843,253.47,253.38,0.02]
[1737924968584,5.35896843,253.39,253.38,0.02]
[1737924971785,0.38980009,253.49,253.45,1.0]
[1737924971966,5.35896843,253.51,253.5,1.5484]
[1737924973070,5.35896843,253.51,253.49,20.0]
[1737924973271,5.35896843,253.51,253.5,3.9447]
[1737924973899,5.35896843,253.51,253.45,1.0]
[1737924973900,5.35896843,253.51,253.45,3.9455]
[1737924974089,5.35896843,253.46,253.43,20.0]
[1737924974376,5.35896843,253.44,253.43,23.9458]
[1737924975057,5.35896843,253.44,253.43,3.9458]
[1737924975704,5.35896843,253.44,253.36,1.6082]
[1737924975915,5.35896843,253.39,253.36,1.6082]
[1737924976611,8.50673336,253.39,253.36,1.6082]
[1737924977397,8.50673336,253.39,253.36,5.555]
[1737924977701,8.50673336,253.42,253.36,5.555]
[1737924978605,8.50673336,253.42,253.35,6.3564]
[1737924979199,8.50673336,253.42,253.35,10.3033]
[1737924981998,8.50673336,253.4,253.35,10.3033]
[1737924983610,8.50673336,253.4,253.3,2.6082]
[1737924983790,8.50673336,253.4,253.33,20.0]
[1737924984108,8.50673336,253.49,253.44,20.0]
[1737924984284,8.50673336,253.53,253.44,20.0]
[1737924985708,0.38980009,253.6,253.45,3.9455]
[1737924985709,8.50673336,253.49,253.45,3.9455]
[1737924986089,8.50673336,253.51,253.45,3.9455]
[1737924988108,8.50673336,253.53,253.45,3.9455]
[1737924990112,8.50673336,253.56,253.45,3.9455]
[1737924990312,8.50673336,253.58,253.48,20.0]
[1737924991016,8.50673336,253.6,253.48,20.0]
[1737924991395,8.50673336,253.6,253.49,3.9449]
[1737924994116,8.50673336,253.58,253.49,3.9449]
[1737924994613,8.50673336,253.58,253.49,13.8072]
[1737924998696,5.43573213,253.59,253.49,13.8072]
[1737924999519,5.43573213,253.61,253.52,20.0]
[1737925000526,5.43573213,253.59,253.52,20.0]
[1737925000718,5.43573213,253.59,253.49,13.8072]
[1737925001628,5.43573213,253.59,253.49,9.8623]
[1737925004600,5.43573213,253.59,253.49,13.8072]
[1737925006530,5.43573213,253.59,253.49,9.8623]
[1737925006703,5.43573213,253.51,253.4,1.0]
[1737925007011,5.43573213,253.49,253.39,1.0]
[1737925007815,5.43573213,253.49,253.42,3.946]
[1737925010432,5.43573213,253.44,253.38,0.083]
[1737925010742,5.43573213,253.42,253.38,0.083]
[1737925012513,8.5049111,253.41,253.38,0.083]
[1737925014946,8.5049111,253.43,253.38,0.083]
[1737925015237,8.5049111,253.43,253.38,4.0295]
[1737925016465,8.5049111,253.41,253.38,0.083]
[1737925020341,8.5049111,253.39,253.38,0.083]
[1737925023655,8.5049111,253.41,253.38,0.083]
[1737925024239,8.5049111,253.41,253.38,4.0295]
[1737925024665,8.5049111,253.41,253.38,0.083]
[1737925028147,8.5049111,253.39,253.38,0.083]
[1737925028933,8.5049111,253.41,253.38,0.083]
[1737925031255,24.16668409,253.47,253.38,0.083]
[1737925031256,8.5049111,253.39,253.38,0.083]
[1737925032459,8.5049111,253.46,253.38,24.0296]
[1737925032763,8.5049111,253.48,253.39,6.3207]
[1737925033970,8.5049111,253.48,253.4,3.9463]
[1737925034563,5.4404462,253.48,253.4,3.9463]
[1737925035957,5.4404462,253.5,253.4,3.9463]
[1737925036161,5.4404462,253.5,253.4,13.8121]
[1737925036571,5.4404462,253.5,253.43,20.0]
[1737925037144,5.4404462,253.5,253.44,3.9457]
[1737925037864,5.4404462,253.52,253.44,3.9457]
[1737925038272,5.4404462,253.54,253.44,3.9457]
[1737925041344,5.4404462,253.52,253.44,3.9457]
[1737925048083,3.9741,253.54,253.4,3.9463]
[1737925048084,5.4404462,253.47,253.4,3.9463]
[1737925048263,0.38980009,253.46,253.38,5.5801]
[1737925048974,5.4404462,253.47,253.38,5.5801]
[1737925049179,5.4404462,253.45,253.38,0.02]
[1737925054075,5.4404462,253.45,253.38,0.083]
[1737925054593,5.4404462,253.42,253.38,0.083]
[1737925057182,9.3864462,253.42,253.38,0.083]
[1737925066106,5.4404462,253.42,253.38,0.083]
[1737925066310,5.4404462,253.46,253.38,4.0296]
[1737925068903,5.4404462,253.46,253.38,3.9666]
[1737925074116,3.9751,253.48,253.38,3.9666]
[1737925074117,5.4704462,253.48,253.38,3.9666]
[1737925074282,5.4704462,253.48,253.4,20.0]
[1737925075392,5.4704462,253.48,253.41,3.9461]
[1737925077814,5.4404462,253.46,253.4,20.0]
[1737925078017,5.4404462,253.44,253.38,0.02]
[1737925078499,5.4404462,253.44,253.38,3.9665]
[1737925079420,5.4404462,253.44,253.38,0.02]
[1737925080996,5.4404462,253.41,253.38,0.02]
[1737925081411,5.4404462,253.41,253.38,0.083]
[1737925081720,5.4404462,253.39,253.38,0.083]
[1737925083015,9.3868462,253.39,253.38,0.083]
[1737925084207,5.4404462,253.39,253.38,0.083]
[1737925089044,5.83024629,253.39,253.38,0.083]
[1737925089805,5.4404462,253.39,253.38,0.083]
[1737925090228,58.994815,253.39,253.25,3.9485]
[1737925090429,5.4404462,253.28,253.23,45.67875966]
[1737925090725,5.4404462,253.3,253.23,45.67875966]
[1737925092615,5.4404462,253.39,253.27,44.776884]
[1737925092927,5.4404462,253.39,253.27,21.0]
[1737925093295,5.4404462,253.39,253.29,20.0]
[1737925093502,5.4404462,253.39,253.31,20.0]
[1737925095428,5.4404462,253.39,253.29,29.8699]
[1737925095633,5.4404462,253.39,253.3,3.9478]
[1737925097110,5.4404462,253.39,253.32,20.0]
[1737925097348,5.4404462,253.42,253.33,3.9474]
[1737925101025,5.4404462,253.4,253.33,3.9474]
[1737925108752,5.4704462,253.4,253.31,4.0106]
[1737925109945,9.4167462,253.4,253.31,4.0106]
[1737925110754,5.4704462,253.4,253.31,4.0106]
[1737925111948,0.03,253.4,253.32,20.0]
[1737925113055,0.03,253.4,253.33,3.9474]
[1737925113345,0.03,253.4,253.33,13.8159]
[1737925115233,0.03,253.4,253.36,20.0]
[1737925117364,0.03,253.4,253.37,3.9467]
[1737925119069,0.03,253.4,253.34,3.9472]
[1737925122158,0.03,253.4,253.3,3.9478]
[1737925122326,5.4404462,253.38,253.3,3.9478]
[1737925123457,5.4704462,253.4,253.3,3.9478]
[1737925125572,9.4168462,253.4,253.3,3.9478]
[1737925125775,5.4704462,253.4,253.3,3.9478]
[1737925127073,0.03,253.4,253.32,3.9475]
[1737925128979,0.03,253.4,253.36,3.9469]
[1737925130673,5.4404462,253.38,253.27,20.0]
[1737925130875,5.4404462,253.36,253.27,20.0]
[1737925131173,5.4404462,253.36,253.28,20.0]
[1737925132248,5.4404462,253.36,253.28,23.9481]
[1737925133871,5.4404462,253.36,253.28,24.0111]
[1737925134073,3.9468,253.37,253.28,0.063]
[1737925134074,5.4404462,253.34,253.28,0.063]
[1737925135779,5.4404462,253.32,253.28,0.063]
[1737925139286,5.4404462,253.38,253.28,4.0111]
[1737925141257,1.6421,253.4,253.28,33.8815]
[1737925141258,7.0825462,253.4,253.28,33.8815]
[1737925142386,5.4704462,253.4,253.28,33.8815]
[1737925142583,0.03,253.4,253.32,20.0]
[1737925143289,0.03,253.4,253.33,3.9474]
[1737925144483,5.4704462,253.4,253.33,3.9474]
[1737925146588,5.4404462,253.38,253.33,3.9474]
[1737925147290,5.4404462,253.38,253.29,3.948]
[1737925149988,5.4404462,253.35,253.28,4.011]
[1737925150490,5.4404462,253.35,253.28,0.063]
[1737925151606,5.4404462,253.35,253.28,4.0111]
[1737925156976,5.4404462,253.33,253.28,4.0111]
[1737925158194,5.4404462,253.31,253.28,0.063]
[1737925161002,5.4404462,253.33,253.28,4.0111]
[1737925162899,5.4404462,253.35,253.28,4.0111]
[1737925163393,5.4404462,253.33,253.28,4.0111]
[1737925168702,0.03,253.38,253.32,20.0]
[1737925171206,0.03,253.38,253.33,3.9474]
[1737925171677,5.4704462,253.38,253.33,3.9474]
[1737925171880,0.03,253.38,253.36,20.0]
[1737925172590,0.03,253.38,253.34,20.0]
[1737925173107,0.03,253.38,253.35,3.9471]
[1737925175103,0.03,253.38,253.36,20.0]
[1737925176390,0.03,253.38,253.37,3.9467]
[1737925179307,0.03,253.38,253.32,9.8687]
[1737925179512,0.03,253.38,253.33,20.0]
[1737925179714,5.4704462,253.38,253.33,20.0]
[1737925180211,5.4704462,253.38,253.31,3.9477]
[1737925180795,5.4704462,253.38,253.32,20.0]
[1737925185112,0.03,253.38,253.33,3.9474]
[1737925189596,0.03,253.38,253.33,23.9474]
[1737925191197,0.03,253.38,253.37,24.776884]
[1737925191401,0.03,253.38,253.37,23.776884]
[1737925192027,0.03,253.38,253.36,20.0]
[1737925192819,0.03,253.38,253.37,3.9467]
[1737925196921,0.03,253.38,253.37,27.723584]
[1737925197912,0.0001,253.4,253.39,21.0]
[1737925198112,0.0001,253.4,253.38,23.776884]
[1737925199136,0.0001,253.4,253.39,3.9464]
[1737925199326,0.0001,253.4,253.39,27.723284]
[1737925200234,0.0001,253.4,253.39,162.423284]
[1737925200426,0.0001,253.4,253.39,163.423284]
[1737925200635,0.0001,253.4,253.39,164.423284]
[1737925201140,0.0001,253.4,253.39,163.423284]
[1737925201307,0.0001,253.4,253.39,164.423284]
[1737925203339,0.0001,253.44,253.43,1.0]
[1737925203537,0.03,253.48,253.47,1.0]
[1737925203843,0.03,253.54,253.5,20.0]
[1737925204014,0.03,253.54,253.5,154.7]
[1737925204214,0.03,253.54,253.53,20.0]
[1737925204830,0.03,253.54,253.5,134.7]
[1737925205836,0.03,253.54,253.53,20.0]
[1737925207013,0.03,253.54,253.53,43.776884]
[1737925207221,0.03,253.54,253.53,47.721184]
[1737925208941,0.03,253.54,253.53,182.421184]
[1737925212621,0.03,253.54,253.53,134.7]
[1737925213133,0.03,253.54,253.53,138.6443]
[1737925213329,0.03,253.54,253.53,134.7]
[1737925213715,1.659,253.54,253.48,134.7]
[1737925214158,0.03,253.54,253.51,20.0]
[1737925214919,5.4704462,253.54,253.48,134.7]
[1737925215127,5.4404462,253.52,253.44,20.0]
[1737925215330,8.2591,253.51,253.44,154.7]
[1737925215549,5.4404462,253.5,253.44,154.7]
[1737925215919,5.4404462,253.5,253.32,1.063]
[1737925215920,1.629,253.44,253.32,0.063]
[1737925216116,25.83024629,253.43,253.32,0.063]
[1737925216344,6.6301,253.4,253.32,0.063]
[1737925216550,4.33620009,253.39,253.32,0.063]
[1737925216761,3.9464,253.39,253.32,0.063]
[1737925217252,6.6301,253.4,253.32,0.063]
[1737925217552,6.6301,253.4,253.32,4.0105]
[1737925217736,1.629,253.44,253.36,23.776884]
[1737925217935,1.629,253.44,253.38,4.0095]
[1737925218330,1.629,253.44,253.38,0.063]
[1737925218849,1.629,253.44,253.39,20.0]
[1737925219448,6.6301,253.47,253.39,20.0]
[1737925219627,6.6301,253.47,253.39,43.776884]
[1737925220542,6.6301,253.47,253.4,3.9463]
[1737925222835,6.6301,253.47,253.39,20.0]
[1737925223458,6.6301,253.47,253.39,23.9463]
[1737925223835,6.6301,253.47,253.4,20.0]
[1737925224724,6.6301,253.47,253.41,3.9461]
[1737925225925,1.629,253.5,253.42,23.776884]
[1737925226133,0.03,253.51,253.49,20.0]
[1737925226632,0.03,253.51,253.5,3.9447]
[1737925227034,0.03,253.51,253.5,27.721584]
[1737925227241,0.0001,253.51,253.5,27.721584]
[1737925227458,0.0001,253.51,253.5,162.421584]
[1737925229257,0.0001,253.51,253.49,20.0]
[1737925229630,0.03,253.59,253.49,20.0]
[1737925229833,5.4404462,253.54,253.46,3.9453]
[1737925230046,5.4404462,253.54,253.47,20.0]
[1737925230537,8.49774812,253.52,253.39,3.9464]
[1737925230855,0.03,253.59,253.39,20.0]
[1737925230856,10.07154812,253.5,253.39,20.0]
[1737925231243,10.07154812,253.5,253.4,20.0]
[1737925231450,10.07154812,253.5,253.39,20.0]
[1737925231451,14.01634812,253.5,253.39,20.0]
[1737925231949,14.01634812,253.5,253.44,0.063]
[1737925231950,8.49774812,253.48,253.44,0.063]
[1737925232661,10.07154812,253.5,253.44,0.063]
[1737925233580,8.49774812,253.47,253.44,0.063]
[1737925234568,8.49774812,253.45,253.44,0.063]
[1737925235564,12.44324812,253.45,253.44,0.063]
[1737925236258,22.30704812,253.45,253.38,0.0001]
[1737925236464,36.48464812,253.39,253.38,0.0001]
[1737925236658,36.87444821,253.39,253.38,0.0001]
[1737925237669,40.82084821,253.39,253.38,0.0001]
[1737925237974,73.09548033,253.39,253.38,0.0001]